[Event "*** Titled Tuesday Blitz"]
[Site "Chess.com"]
[Date "2020.05.19"]
[Round "3"]
[White "Fandorine"]
[Black "manitodeplomo"]
[Result "1-0"]
[WhiteElo "2886"]
[BlackElo "2614"]
[TimeControl "180+1"]
[EndTime "12:29:33 PDT"]
[Termination "Fandorine won on time"]

1. e4 {[%clk 0:03:00.9]} 1... c5 {[%clk 0:02:54.8]} 2. Nf3 {[%clk 0:03:01.3]}
2... e6 {[%clk 0:02:54]} 3. g3 {[%clk 0:02:58.5]} 3... b6 {[%clk 0:02:46]} 4.
Bg2 {[%clk 0:02:58.4]} 4... Bb7 {[%clk 0:02:46.9]} 5. Nc3 {[%clk 0:02:58.1]}
5... a6 {[%clk 0:02:42.3]} 6. d4 {[%clk 0:02:55.5]} 6... cxd4 {[%clk 0:02:42]}
7. Nxd4 {[%clk 0:02:56.4]} 7... Ne7 {[%clk 0:02:38.1]} 8. O-O {[%clk 0:02:55.8]}
8... Nec6 {[%clk 0:02:38.4]} 9. Be3 {[%clk 0:02:50.1]} 9... Be7 {[%clk
0:02:36.7]} 10. f4 {[%clk 0:02:44.9]} 10... O-O {[%clk 0:02:37]} 11. Kh1 {[%clk
0:02:38.3]} 11... b5 {[%clk 0:02:28.3]} 12. a3 {[%clk 0:02:35.4]} 12... d6
{[%clk 0:02:27.8]} 13. Nb3 {[%clk 0:02:32.3]} 13... Nd7 {[%clk 0:02:27.1]} 14.
Qe2 {[%clk 0:02:27.5]} 14... Nb6 {[%clk 0:02:19.7]} 15. Rad1 {[%clk 0:02:27.6]}
15... Qc7 {[%clk 0:02:19.1]} 16. Bc1 {[%clk 0:02:23.7]} 16... Rfe8 {[%clk
0:02:14.1]} 17. g4 {[%clk 0:02:21.6]} 17... Bf8 {[%clk 0:02:14.3]} 18. g5 {[%clk
0:02:22.1]} 18... b4 {[%clk 0:02:08.7]} 19. axb4 {[%clk 0:02:20.2]} 19... Nxb4
{[%clk 0:02:09.6]} 20. Rf3 {[%clk 0:02:17.7]} 20... Rac8 {[%clk 0:01:36.9]} 21.
Rh3 {[%clk 0:02:12.8]} 21... g6 {[%clk 0:01:35.7]} 22. Qf2 {[%clk 0:02:07.5]}
22... Bg7 {[%clk 0:01:14]} 23. Qh4 {[%clk 0:01:38]} 23... Nxc2 {[%clk 0:01:11]}
24. Qxh7+ {[%clk 0:01:24.9]} 24... Kf8 {[%clk 0:01:11]} 25. Nd2 {[%clk
0:01:04.6]} 25... Nd4 {[%clk 0:00:42]} 26. Nf1 {[%clk 0:00:56.4]} 26... Nb3
{[%clk 0:00:23.2]} 27. Ne3 {[%clk 0:00:34.2]} 27... Nxc1 {[%clk 0:00:23.1]} 28.
Rxc1 {[%clk 0:00:35.1]} 28... Qe7 {[%clk 0:00:20.5]} 29. Ng4 {[%clk 0:00:34.2]}
29... Red8 {[%clk 0:00:13.4]} 30. Nh6 {[%clk 0:00:31.2]} 30... Ke8 {[%clk
0:00:08.6]} 31. Qxg7 {[%clk 0:00:31.1]} 31... Kd7 {[%clk 0:00:09.1]} 32. Qxf7
{[%clk 0:00:25.4]} 32... Nc4 {[%clk 0:00:09]} 33. Qxe7+ {[%clk 0:00:22.2]} 33...
Kxe7 {[%clk 0:00:09.9]} 34. Ng4 {[%clk 0:00:22.7]} 34... Rh8 {[%clk 0:00:04.2]}
35. Rxh8 {[%clk 0:00:22.7]} 35... Rxh8 {[%clk 0:00:05.1]} 36. b3 {[%clk
0:00:21.8]} 36... Nd2 {[%clk 0:00:04.3]} 37. Rd1 {[%clk 0:00:20.8]} 37... Nxb3
{[%clk 0:00:04.1]} 38. Rb1 {[%clk 0:00:19.9]} 38... Nc5 {[%clk 0:00:04.1]} 39.
Na4 {[%clk 0:00:16.5]} 39... Bc6 {[%clk 0:00:01.6]} 40. Nxc5 {[%clk 0:00:15.9]}
40... dxc5 {[%clk 0:00:02.5]} 41. Ne5 {[%clk 0:00:16.5]} 41... Rc8 {[%clk
0:00:02.9]} 42. Rb6 {[%clk 0:00:12.7]} 42... Bb5 {[%clk 0:00:02.9]} 43. Bh3
{[%clk 0:00:12.3]} 43... c4 {[%clk 0:00:02.5]} 44. Rxe6+ {[%clk 0:00:12.3]}
44... Kd8 {[%clk 0:00:02.8]} 45. Rd6+ {[%clk 0:00:09]} 45... Kc7 {[%clk
0:00:03]} 46. Rd4 {[%clk 0:00:08]} 46... Rb8 {[%clk 0:00:01.2]} 47. Nxc4 {[%clk
0:00:08]} 47... Kc6 {[%clk 0:00:01.1]} 48. Ne5+ {[%clk 0:00:07.3]} 48... Kc5
{[%clk 0:00:01.6]} 49. Rd5+ {[%clk 0:00:07.8]} 49... Kb4 {[%clk 0:00:01.2]} 50.
Kg2 {[%clk 0:00:04.9]} 50... a5 {[%clk 0:00:01.6]} 51. Bd7 {[%clk 0:00:05.5]}
1-0

[Event "*** Titled Tuesday Blitz"]
[Site "Chess.com"]
[Date "2020.05.19"]
[Round "3"]
[White "ChessWarrior7197"]
[Black "zubridis"]
[Result "1-0"]
[WhiteElo "2920"]
[BlackElo "2460"]
[TimeControl "180+1"]
[EndTime "12:29:35 PDT"]
[Termination "ChessWarrior7197 won on time"]

1. e4 {[%clk 0:03:00.9]} 1... d6 {[%clk 0:02:57.8]} 2. d4 {[%clk 0:03:00.7]}
2... Nf6 {[%clk 0:02:58.1]} 3. Nc3 {[%clk 0:03:00]} 3... g6 {[%clk 0:02:57.4]}
4. h4 {[%clk 0:02:58.5]} 4... c5 {[%clk 0:02:41.3]} 5. Nge2 {[%clk 0:02:53]}
5... cxd4 {[%clk 0:02:26.2]} 6. Nxd4 {[%clk 0:02:52.6]} 6... Nc6 {[%clk
0:02:26.5]} 7. f3 {[%clk 0:02:42.5]} 7... Bg7 {[%clk 0:02:18.3]} 8. Be3 {[%clk
0:02:42.4]} 8... d5 {[%clk 0:02:00.5]} 9. exd5 {[%clk 0:02:24]} 9... Nxd5 {[%clk
0:01:59.1]} 10. Nxc6 {[%clk 0:02:24.4]} 10... bxc6 {[%clk 0:01:57.7]} 11. Bd4
{[%clk 0:02:24.4]} 11... Nxc3 {[%clk 0:01:49.9]} 12. bxc3 {[%clk 0:02:17.4]}
12... O-O {[%clk 0:01:44]} 13. Bc4 {[%clk 0:02:12.6]} 13... e5 {[%clk
0:01:40.2]} 14. Bc5 {[%clk 0:02:10.3]} 14... e4 {[%clk 0:01:25.1]} 15. Bxf8
{[%clk 0:01:50.4]} 15... Bxc3+ {[%clk 0:01:23.3]} 16. Kf1 {[%clk 0:01:50.8]}
16... Qxf8 {[%clk 0:01:22.8]} 17. Rb1 {[%clk 0:01:51.3]} 17... Qc5 {[%clk
0:01:13.9]} 18. Qe2 {[%clk 0:01:40.2]} 18... e3 {[%clk 0:00:57]} 19. h5 {[%clk
0:01:36.7]} 19... gxh5 {[%clk 0:00:54.5]} 20. Rh4 {[%clk 0:01:33.1]} 20... Qg5
{[%clk 0:00:43.5]} 21. Re4 {[%clk 0:01:28.6]} 21... Bd2 {[%clk 0:00:40.5]} 22.
Bd3 {[%clk 0:01:19.1]} 22... h4 {[%clk 0:00:34.8]} 23. f4 {[%clk 0:00:48.6]}
23... Qg3 {[%clk 0:00:30]} 24. Qf3 {[%clk 0:00:48.7]} 24... Qxf3+ {[%clk
0:00:27.8]} 25. gxf3 {[%clk 0:00:49.6]} 25... Be6 {[%clk 0:00:21.3]} 26. f5
{[%clk 0:00:45.6]} 26... Bxa2 {[%clk 0:00:19.1]} 27. Rb7 {[%clk 0:00:44.3]}
27... Bd5 {[%clk 0:00:18.3]} 28. Rg4+ {[%clk 0:00:44.5]} 28... Kf8 {[%clk
0:00:17.6]} 29. Ke2 {[%clk 0:00:42.5]} 29... a5 {[%clk 0:00:16.3]} 30. Rxh4
{[%clk 0:00:41.4]} 30... Kg7 {[%clk 0:00:13.7]} 31. c4 {[%clk 0:00:34.4]} 31...
a4 {[%clk 0:00:11.6]} 32. cxd5 {[%clk 0:00:34.5]} 32... cxd5 {[%clk 0:00:12.5]}
33. Rb2 {[%clk 0:00:32.9]} 33... a3 {[%clk 0:00:12.2]} 34. Ra2 {[%clk
0:00:33.2]} 34... Bc1 {[%clk 0:00:11.9]} 35. Rd4 {[%clk 0:00:32]} 35... Ra5
{[%clk 0:00:12.1]} 36. Bc2 {[%clk 0:00:29.8]} 36... Kf6 {[%clk 0:00:12]} 37. Rd1
{[%clk 0:00:27.6]} 37... Bb2 {[%clk 0:00:10.8]} 38. Kxe3 {[%clk 0:00:27.7]}
38... d4+ {[%clk 0:00:10.1]} 39. Ke4 {[%clk 0:00:26.8]} 39... Rc5 {[%clk
0:00:10]} 40. Bd3 {[%clk 0:00:25.4]} 40... Re5+ {[%clk 0:00:09.6]} 41. Kf4
{[%clk 0:00:25.5]} 41... Re3 {[%clk 0:00:09.1]} 42. Be4 {[%clk 0:00:22.7]} 42...
Re2 {[%clk 0:00:07.1]} 43. Kg3 {[%clk 0:00:19.9]} 43... Re3 {[%clk 0:00:05.4]}
44. Rd2 {[%clk 0:00:19.4]} 44... h5 {[%clk 0:00:04.9]} 45. Rdxb2 {[%clk
0:00:19.2]} 45... axb2 {[%clk 0:00:05.8]} 46. Rxb2 {[%clk 0:00:20.1]} 46... Rc3
{[%clk 0:00:03.7]} 47. Rb4 {[%clk 0:00:19.6]} 47... d3 {[%clk 0:00:03.2]} 48.
Rd4 {[%clk 0:00:19.6]} 48... Rc1 {[%clk 0:00:02.4]} 49. Rxd3 {[%clk 0:00:19.8]}
49... Rg1+ {[%clk 0:00:02.8]} 50. Kf4 {[%clk 0:00:20.2]} 1-0

[Event "*** Titled Tuesday Blitz"]
[Site "Chess.com"]
[Date "2020.05.19"]
[Round "3"]
[White "aa175"]
[Black "AlexTriapishko"]
[Result "0-1"]
[WhiteElo "2438"]
[BlackElo "2730"]
[TimeControl "180+1"]
[EndTime "12:29:35 PDT"]
[Termination "AlexTriapishko won on time"]

1. d4 {[%clk 0:03:00.9]} 1... Nf6 {[%clk 0:02:56.9]} 2. Nf3 {[%clk 0:02:54.6]}
2... g6 {[%clk 0:02:56.7]} 3. Bf4 {[%clk 0:02:54.5]} 3... Bg7 {[%clk 0:02:56.9]}
4. e3 {[%clk 0:02:54.4]} 4... O-O {[%clk 0:02:57.3]} 5. Be2 {[%clk 0:02:53.7]}
5... c5 {[%clk 0:02:57.7]} 6. O-O {[%clk 0:02:53.6]} 6... cxd4 {[%clk
0:02:51.6]} 7. exd4 {[%clk 0:02:53.4]} 7... d6 {[%clk 0:02:52.2]} 8. Nbd2 {[%clk
0:02:53.1]} 8... Nc6 {[%clk 0:02:51.2]} 9. c3 {[%clk 0:02:53]} 9... Nh5 {[%clk
0:02:49.3]} 10. Bg5 {[%clk 0:02:52]} 10... h6 {[%clk 0:02:49]} 11. Bh4 {[%clk
0:02:52.1]} 11... g5 {[%clk 0:02:46.4]} 12. Ne1 {[%clk 0:02:52.4]} 12... Nf4
{[%clk 0:02:45.6]} 13. Bg3 {[%clk 0:02:52.5]} 13... Nxe2+ {[%clk 0:02:44.7]} 14.
Qxe2 {[%clk 0:02:53.4]} 14... e5 {[%clk 0:02:45.4]} 15. dxe5 {[%clk 0:02:53.1]}
15... dxe5 {[%clk 0:02:46.3]} 16. Nef3 {[%clk 0:02:52.7]} 16... Qe7 {[%clk
0:02:38.6]} 17. Nc4 {[%clk 0:02:49.4]} 17... f5 {[%clk 0:02:22.9]} 18. h3 {[%clk
0:01:56]} 18... f4 {[%clk 0:02:20.7]} 19. Bh2 {[%clk 0:01:55.2]} 19... e4 {[%clk
0:02:18.4]} 20. Nfd2 {[%clk 0:01:54.1]} 20... Bf5 {[%clk 0:02:18.9]} 21. Rfe1
{[%clk 0:01:51.9]} 21... Rae8 {[%clk 0:02:19.2]} 22. Rad1 {[%clk 0:01:47.9]}
22... Kh7 {[%clk 0:02:17.6]} 23. Na3 {[%clk 0:01:41.5]} 23... Qf7 {[%clk
0:01:33.8]} 24. Qc4 {[%clk 0:01:35.5]} 24... Qxc4 {[%clk 0:01:15.4]} 25. Naxc4
{[%clk 0:01:36.4]} 25... Rf6 {[%clk 0:01:15.2]} 26. Nb3 {[%clk 0:01:29.3]} 26...
b6 {[%clk 0:00:58.1]} 27. Nd6 {[%clk 0:01:27.4]} 27... Rd8 {[%clk 0:00:58.6]}
28. Nxe4 {[%clk 0:01:14.7]} 28... Bxe4 {[%clk 0:00:57.8]} 29. Rxd8 {[%clk
0:01:12.4]} 29... Nxd8 {[%clk 0:00:58.7]} 30. Rxe4 {[%clk 0:01:11.6]} 30... Rd6
{[%clk 0:00:59.6]} 31. Nd4 {[%clk 0:01:10.1]} 31... Bxd4 {[%clk 0:00:57.9]} 32.
Rxd4 {[%clk 0:01:10.6]} 32... Rxd4 {[%clk 0:00:58.3]} 33. cxd4 {[%clk
0:01:11.5]} 33... Kg6 {[%clk 0:00:54.8]} 34. h4 {[%clk 0:01:00.6]} 34... Kf5
{[%clk 0:00:49.6]} 35. hxg5 {[%clk 0:01:00.7]} 35... hxg5 {[%clk 0:00:50.5]} 36.
f3 {[%clk 0:00:52.1]} 36... Nc6 {[%clk 0:00:49.4]} 37. d5 {[%clk 0:00:51.6]}
37... Nb4 {[%clk 0:00:49.1]} 38. a3 {[%clk 0:00:45.2]} 38... Nd3 {[%clk
0:00:46.4]} 39. b3 {[%clk 0:00:18.2]} 39... Ke5 {[%clk 0:00:45.9]} 40. g3 {[%clk
0:00:14.9]} 40... Kxd5 {[%clk 0:00:41.2]} 41. gxf4 {[%clk 0:00:15.1]} 41... gxf4
{[%clk 0:00:42.1]} 42. Kf1 {[%clk 0:00:05.1]} 42... Kd4 {[%clk 0:00:42.3]} 43.
Ke2 {[%clk 0:00:05.3]} 43... Kc3 {[%clk 0:00:42.5]} 44. b4 {[%clk 0:00:05.6]}
44... b5 {[%clk 0:00:37.5]} 45. Bg1 {[%clk 0:00:03.1]} 45... a6 {[%clk
0:00:32.9]} 46. Bh2 {[%clk 0:00:01.9]} 46... Kc2 {[%clk 0:00:29.8]} 47. Bg1
{[%clk 0:00:01.8]} 47... Nc1+ {[%clk 0:00:29.8]} 48. Ke1 {[%clk 0:00:01.3]}
48... Kd3 {[%clk 0:00:30.4]} 49. Kd1 {[%clk 0:00:01]} 49... Nb3 {[%clk
0:00:24.3]} 50. Ke1 {[%clk 0:00:01.4]} 50... Nd2 {[%clk 0:00:23.6]} 0-1

[Event "*** Titled Tuesday Blitz"]
[Site "Chess.com"]
[Date "2020.05.19"]
[Round "3"]
[White "Korchmar_Vasiliy"]
[Black "WPWPWP-2015"]
[Result "1/2-1/2"]
[WhiteElo "2608"]
[BlackElo "2409"]
[TimeControl "180+1"]
[EndTime "12:29:36 PDT"]
[Termination "Game drawn by repetition"]

1. d4 {[%clk 0:03:00.9]} 1... Nf6 {[%clk 0:02:58.2]} 2. c4 {[%clk 0:03:01.2]}
2... c6 {[%clk 0:02:57.9]} 3. Nf3 {[%clk 0:03:00.8]} 3... d5 {[%clk 0:02:57.8]}
4. g3 {[%clk 0:03:01.5]} 4... e6 {[%clk 0:02:53.2]} 5. Bg2 {[%clk 0:03:01.7]}
5... Nbd7 {[%clk 0:02:53]} 6. O-O {[%clk 0:03:02.3]} 6... Bd6 {[%clk 0:02:51.9]}
7. Nc3 {[%clk 0:03:00.5]} 7... O-O {[%clk 0:02:51.6]} 8. Nd2 {[%clk 0:02:59.5]}
8... dxc4 {[%clk 0:02:38.7]} 9. Nxc4 {[%clk 0:02:59.3]} 9... Bc7 {[%clk
0:02:38.7]} 10. b3 {[%clk 0:02:57.3]} 10... e5 {[%clk 0:02:34.8]} 11. Ba3 {[%clk
0:02:51.6]} 11... Re8 {[%clk 0:02:34]} 12. d5 {[%clk 0:02:47.6]} 12... cxd5
{[%clk 0:02:28.9]} 13. Nxd5 {[%clk 0:02:48.5]} 13... Nxd5 {[%clk 0:02:27.6]} 14.
Bxd5 {[%clk 0:02:48.1]} 14... Nf6 {[%clk 0:02:27.5]} 15. Bg2 {[%clk 0:02:45.6]}
15... e4 {[%clk 0:02:02.9]} 16. Bb2 {[%clk 0:02:24.7]} 16... Bg4 {[%clk
0:01:56]} 17. Re1 {[%clk 0:02:17.1]} 17... b5 {[%clk 0:01:35.6]} 18. Ne3 {[%clk
0:02:16.5]} 18... Bh5 {[%clk 0:01:20.7]} 19. Bxf6 {[%clk 0:01:32.4]} 19... Qxf6
{[%clk 0:01:19.6]} 20. Nd5 {[%clk 0:01:32.7]} 20... Qe5 {[%clk 0:01:11.7]} 21.
Nxc7 {[%clk 0:01:32.5]} 21... Qxc7 {[%clk 0:01:11.6]} 22. Qd5 {[%clk 0:01:33]}
22... Qe5 {[%clk 0:01:09.6]} 23. Bxe4 {[%clk 0:01:31.7]} 23... Qxd5 {[%clk
0:00:15.9]} 24. Bxd5 {[%clk 0:01:32.6]} 24... Rad8 {[%clk 0:00:13.6]} 25. e4
{[%clk 0:01:10]} 25... Kf8 {[%clk 0:00:10.9]} 26. Kg2 {[%clk 0:01:07.4]} 26...
f5 {[%clk 0:00:09.7]} 27. Rac1 {[%clk 0:00:59.2]} 27... fxe4 {[%clk 0:00:09.1]}
28. Bxe4 {[%clk 0:01:00.1]} 28... Bf7 {[%clk 0:00:06.2]} 29. Rc7 {[%clk
0:00:39.3]} 29... Rxe4 {[%clk 0:00:05.3]} 30. Rxe4 {[%clk 0:00:40.2]} 30... Bd5
{[%clk 0:00:05.1]} 31. Kf3 {[%clk 0:00:40.8]} 31... Re8 {[%clk 0:00:04.9]} 32.
Rxa7 {[%clk 0:00:25.3]} 32... Bxe4+ {[%clk 0:00:05.1]} 33. Kf4 {[%clk
0:00:25.9]} 33... Bd5 {[%clk 0:00:03.9]} 34. Ra5 {[%clk 0:00:22.4]} 34... Re4+
{[%clk 0:00:03.7]} 35. Kf5 {[%clk 0:00:22.9]} 35... Rb4 {[%clk 0:00:02.9]} 36.
Ke5 {[%clk 0:00:20.7]} 36... Bc6 {[%clk 0:00:03]} 37. Kd6 {[%clk 0:00:20.4]}
37... Be8 {[%clk 0:00:03.2]} 38. Kc5 {[%clk 0:00:18.1]} 38... Re4 {[%clk
0:00:03.3]} 39. Ra8 {[%clk 0:00:07.4]} 39... Re2 {[%clk 0:00:03.1]} 40. a4
{[%clk 0:00:07.2]} 40... bxa4 {[%clk 0:00:03.3]} 41. bxa4 {[%clk 0:00:08.1]}
41... Rxf2 {[%clk 0:00:03.8]} 42. a5 {[%clk 0:00:07.6]} 42... Rc2+ {[%clk
0:00:03.5]} 43. Kb6 {[%clk 0:00:07.1]} 43... Rb2+ {[%clk 0:00:03.8]} 44. Kc7
{[%clk 0:00:07]} 44... Ke7 {[%clk 0:00:03.2]} 45. a6 {[%clk 0:00:06.7]} 45...
Rc2+ {[%clk 0:00:03.4]} 46. Kb6 {[%clk 0:00:06.3]} 46... Rb2+ {[%clk 0:00:03.6]}
47. Kc7 {[%clk 0:00:05.9]} 47... Bd7 {[%clk 0:00:03.1]} 48. Rg8 {[%clk 0:00:04]}
48... Rc2+ {[%clk 0:00:02.8]} 49. Kb6 {[%clk 0:00:03.9]} 49... Rb2+ {[%clk
0:00:02.4]} 50. Kc7 {[%clk 0:00:03.9]} 50... Rc2+ {[%clk 0:00:02.3]} 51. Kb6
{[%clk 0:00:04.4]} 51... Rb2+ {[%clk 0:00:01.4]} 52. Kc7 {[%clk 0:00:04.3]}
1/2-1/2

[Event "*** Titled Tuesday Blitz"]
[Site "Chess.com"]
[Date "2020.05.19"]
[Round "3"]
[White "Raja3401"]
[Black "jlandaw"]
[Result "1-0"]
[WhiteElo "2721"]
[BlackElo "2478"]
[TimeControl "180+1"]
[EndTime "12:29:37 PDT"]
[Termination "Raja3401 won by resignation"]

1. e4 {[%clk 0:03:00.9]} 1... e5 {[%clk 0:03:00]} 2. Nf3 {[%clk 0:02:59.9]} 2...
Nc6 {[%clk 0:03:00.4]} 3. Bb5 {[%clk 0:02:58.3]} 3... a6 {[%clk 0:03:00.6]} 4.
Ba4 {[%clk 0:02:57.2]} 4... Nf6 {[%clk 0:03:00.7]} 5. O-O {[%clk 0:02:55.9]}
5... Be7 {[%clk 0:03:01.2]} 6. d3 {[%clk 0:02:52.4]} 6... b5 {[%clk 0:03:01.1]}
7. Bb3 {[%clk 0:02:52.1]} 7... d6 {[%clk 0:03:01.6]} 8. a3 {[%clk 0:02:50.2]}
8... Na5 {[%clk 0:02:59.9]} 9. Ba2 {[%clk 0:02:49.4]} 9... c5 {[%clk 0:03:00.2]}
10. Nc3 {[%clk 0:02:47.2]} 10... h6 {[%clk 0:02:56.6]} 11. b4 {[%clk 0:02:46.4]}
11... Nb7 {[%clk 0:02:53.7]} 12. Nd5 {[%clk 0:02:38.8]} 12... O-O {[%clk
0:02:42.2]} 13. h3 {[%clk 0:02:33.7]} 13... Be6 {[%clk 0:02:41.7]} 14. Nxf6+
{[%clk 0:02:28.5]} 14... Bxf6 {[%clk 0:02:41.4]} 15. Bxe6 {[%clk 0:02:29.4]}
15... fxe6 {[%clk 0:02:40.9]} 16. c3 {[%clk 0:02:30.3]} 16... d5 {[%clk
0:02:18.8]} 17. Re1 {[%clk 0:02:16.6]} 17... Qd6 {[%clk 0:02:05.2]} 18. Be3
{[%clk 0:01:56]} 18... Rad8 {[%clk 0:01:57.2]} 19. a4 {[%clk 0:01:19.3]} 19...
d4 {[%clk 0:00:41.7]} 20. cxd4 {[%clk 0:01:17]} 20... exd4 {[%clk 0:00:40.8]}
21. bxc5 {[%clk 0:01:11.3]} 21... Nxc5 {[%clk 0:00:38.9]} 22. Bc1 {[%clk
0:00:53.7]} 22... Qb6 {[%clk 0:00:35.7]} 23. axb5 {[%clk 0:00:50.9]} 23... axb5
{[%clk 0:00:36.6]} 24. Rb1 {[%clk 0:00:47]} 24... b4 {[%clk 0:00:33.5]} 25. e5
{[%clk 0:00:45]} 25... Be7 {[%clk 0:00:32.8]} 26. Nd2 {[%clk 0:00:40.1]} 26...
Qb5 {[%clk 0:00:11.7]} 27. Nc4 {[%clk 0:00:38.6]} 27... Na4 {[%clk 0:00:12.2]}
28. Qg4 {[%clk 0:00:35]} 28... Qd5 {[%clk 0:00:09.8]} 29. Bxh6 {[%clk
0:00:34.6]} 29... Rf7 {[%clk 0:00:08.2]} 30. Bg5 {[%clk 0:00:34.2]} 30... Nc3
{[%clk 0:00:08.2]} 31. Bxe7 {[%clk 0:00:34.2]} 31... Rxe7 {[%clk 0:00:09.1]} 32.
Rxb4 {[%clk 0:00:34.4]} 32... Rf8 {[%clk 0:00:08]} 33. Rb6 {[%clk 0:00:24.7]}
33... Rf5 {[%clk 0:00:03.7]} 34. Rd6 {[%clk 0:00:22.5]} 34... Qc5 {[%clk
0:00:03.6]} 35. Rxd4 {[%clk 0:00:19.2]} 35... Nd5 {[%clk 0:00:01.7]} 36. Nd6
{[%clk 0:00:17]} 36... Rf8 {[%clk 0:00:01.6]} 37. Ne4 {[%clk 0:00:15.6]} 37...
Qa5 {[%clk 0:00:01.5]} 38. Nf6+ {[%clk 0:00:14.5]} 38... Rxf6 {[%clk 0:00:01.6]}
39. exf6 {[%clk 0:00:13.9]} 39... Qxe1+ {[%clk 0:00:02.5]} 40. Kh2 {[%clk
0:00:14.3]} 40... Qe5+ {[%clk 0:00:03.4]} 41. f4 {[%clk 0:00:13.1]} 41... Qxf6
{[%clk 0:00:04.3]} 42. Re4 {[%clk 0:00:13.2]} 42... Rf7 {[%clk 0:00:04.7]} 43.
g3 {[%clk 0:00:13]} 43... Ne7 {[%clk 0:00:04.9]} 44. Rxe6 {[%clk 0:00:12.9]}
44... Qf5 {[%clk 0:00:05.5]} 45. Qxf5 {[%clk 0:00:12.9]} 45... Nxf5 {[%clk
0:00:05.7]} 46. Re8+ {[%clk 0:00:12.7]} 46... Kh7 {[%clk 0:00:05.9]} 47. Re4
{[%clk 0:00:13.4]} 47... Nd6 {[%clk 0:00:06.2]} 48. Re3 {[%clk 0:00:13.2]} 48...
Nf5 {[%clk 0:00:06.6]} 49. Re5 {[%clk 0:00:13.5]} 49... Nd6 {[%clk 0:00:07]} 50.
Kg2 {[%clk 0:00:13.9]} 50... Kg6 {[%clk 0:00:07.6]} 51. Kf3 {[%clk 0:00:14.2]}
51... Kf6 {[%clk 0:00:08]} 52. g4 {[%clk 0:00:13.3]} 52... Re7 {[%clk
0:00:08.5]} 53. d4 {[%clk 0:00:12.8]} 53... g6 {[%clk 0:00:07.7]} 54. h4 {[%clk
0:00:12.2]} 54... Kf7 {[%clk 0:00:08]} 55. h5 {[%clk 0:00:12.2]} 55... gxh5
{[%clk 0:00:08.1]} 56. Rxh5 {[%clk 0:00:13.1]} 56... Kg7 {[%clk 0:00:07.6]} 57.
Rg5+ {[%clk 0:00:13.2]} 57... Kf6 {[%clk 0:00:07.7]} 58. Re5 {[%clk 0:00:14.1]}
58... Nf7 {[%clk 0:00:06.7]} 59. g5+ {[%clk 0:00:13.8]} 1-0

[Event "*** Titled Tuesday Blitz"]
[Site "Chess.com"]
[Date "2020.05.19"]
[Round "3"]
[White "gross-aleks"]
[Black "mamey78"]
[Result "1-0"]
[WhiteElo "2563"]
[BlackElo "2367"]
[TimeControl "180+1"]
[EndTime "12:29:38 PDT"]
[Termination "gross-aleks won by checkmate"]

1. c4 {[%clk 0:03:00.9]} 1... e5 {[%clk 0:02:57.7]} 2. g3 {[%clk 0:03:00.3]}
2... Nf6 {[%clk 0:02:57.1]} 3. Bg2 {[%clk 0:03:00.5]} 3... d5 {[%clk 0:02:56.7]}
4. cxd5 {[%clk 0:03:01.4]} 4... Nxd5 {[%clk 0:02:55.3]} 5. Nc3 {[%clk
0:03:01.8]} 5... Nb6 {[%clk 0:02:54.3]} 6. Nf3 {[%clk 0:03:00.9]} 6... Nc6
{[%clk 0:02:53.8]} 7. a3 {[%clk 0:03:01]} 7... Be7 {[%clk 0:02:53.4]} 8. b4
{[%clk 0:02:59.7]} 8... Be6 {[%clk 0:02:50.4]} 9. Rb1 {[%clk 0:02:58.1]} 9... f6
{[%clk 0:02:37.6]} 10. O-O {[%clk 0:02:56.6]} 10... O-O {[%clk 0:02:37.2]} 11.
d3 {[%clk 0:02:55.4]} 11... a5 {[%clk 0:02:34.5]} 12. b5 {[%clk 0:02:48.6]}
12... Nd4 {[%clk 0:02:34.2]} 13. Nxd4 {[%clk 0:02:48.3]} 13... exd4 {[%clk
0:02:33.1]} 14. Na4 {[%clk 0:02:44.4]} 14... Bd5 {[%clk 0:02:31.7]} 15. Nxb6
{[%clk 0:02:42.6]} 15... cxb6 {[%clk 0:02:29.9]} 16. a4 {[%clk 0:02:27.9]} 16...
Kh8 {[%clk 0:02:17.3]} 17. Bxd5 {[%clk 0:02:27.2]} 17... Qxd5 {[%clk 0:02:15.9]}
18. Qb3 {[%clk 0:02:27.1]} 18... Qh5 {[%clk 0:02:13.5]} 19. Qb2 {[%clk
0:02:21.4]} 19... Rad8 {[%clk 0:01:52.7]} 20. e4 {[%clk 0:02:20.7]} 20... dxe3
{[%clk 0:01:48.1]} 21. Bxe3 {[%clk 0:02:20.8]} 21... Rxd3 {[%clk 0:01:48.1]} 22.
Bxb6 {[%clk 0:02:20.3]} 22... Bb4 {[%clk 0:01:48]} 23. Qc2 {[%clk 0:02:07.8]}
23... Rd2 {[%clk 0:01:24.3]} 24. Qe4 {[%clk 0:02:05.4]} 24... Qf7 {[%clk
0:00:58.1]} 25. Rbd1 {[%clk 0:02:02.1]} 25... Rxd1 {[%clk 0:00:58.2]} 26. Rxd1
{[%clk 0:02:01.3]} 26... Re8 {[%clk 0:00:58.1]} 27. Qd5 {[%clk 0:01:50.9]} 27...
Kg8 {[%clk 0:00:50]} 28. Kg2 {[%clk 0:01:32.7]} 28... Qxd5+ {[%clk 0:00:45.9]}
29. Rxd5 {[%clk 0:01:32]} 29... Kf7 {[%clk 0:00:44.7]} 30. Rd7+ {[%clk
0:01:30.5]} 30... Re7 {[%clk 0:00:44]} 31. Rxe7+ {[%clk 0:01:30.5]} 31... Kxe7
{[%clk 0:00:43.7]} 32. Kf3 {[%clk 0:01:30.7]} 32... Ke6 {[%clk 0:00:43.8]} 33.
Ke4 {[%clk 0:01:28]} 33... f5+ {[%clk 0:00:43.7]} 34. Kd4 {[%clk 0:01:26.7]}
34... g5 {[%clk 0:00:43.7]} 35. f3 {[%clk 0:01:25.5]} 35... g4 {[%clk
0:00:41.1]} 36. fxg4 {[%clk 0:01:23]} 36... fxg4 {[%clk 0:00:40.9]} 37. Ke4
{[%clk 0:01:23.2]} 37... h5 {[%clk 0:00:40.1]} 38. Be3 {[%clk 0:01:19]} 38...
Kf6 {[%clk 0:00:35]} 39. Kd5 {[%clk 0:01:11.2]} 39... Kf5 {[%clk 0:00:34.9]} 40.
Bc5 {[%clk 0:01:08]} 40... Be1 {[%clk 0:00:27.1]} 41. Kd6 {[%clk 0:00:57.2]}
41... Ke4 {[%clk 0:00:19.8]} 42. Kc7 {[%clk 0:00:55.7]} 42... Kf3 {[%clk
0:00:16.9]} 43. Kxb7 {[%clk 0:00:54]} 43... Kg2 {[%clk 0:00:16.5]} 44. Kc7
{[%clk 0:00:39.9]} 44... Kxh2 {[%clk 0:00:16]} 45. Bd6 {[%clk 0:00:38.2]} 45...
Bxg3 {[%clk 0:00:11.9]} 46. Bxg3+ {[%clk 0:00:38.2]} 46... Kxg3 {[%clk
0:00:12.8]} 47. b6 {[%clk 0:00:38.6]} 47... Kh2 {[%clk 0:00:12.2]} 48. b7 {[%clk
0:00:39.5]} 48... g3 {[%clk 0:00:13.1]} 49. b8=Q {[%clk 0:00:39.3]} 49... g2
{[%clk 0:00:14]} 50. Kd7+ {[%clk 0:00:34.3]} 50... Kh1 {[%clk 0:00:13]} 51. Qb7
{[%clk 0:00:33.8]} 51... Kh2 {[%clk 0:00:11.9]} 52. Qc7+ {[%clk 0:00:33.6]}
52... Kh1 {[%clk 0:00:11.9]} 53. Qc6 {[%clk 0:00:33.4]} 53... Kh2 {[%clk
0:00:11.3]} 54. Qc2 {[%clk 0:00:32.1]} 54... h4 {[%clk 0:00:09.9]} 55. Ke6
{[%clk 0:00:29.3]} 55... h3 {[%clk 0:00:08.4]} 56. Kf5 {[%clk 0:00:27.8]} 56...
Kh1 {[%clk 0:00:08.4]} 57. Qe4 {[%clk 0:00:26.9]} 57... h2 {[%clk 0:00:08.5]}
58. Kg4 {[%clk 0:00:25.5]} 58... Kg1 {[%clk 0:00:08.5]} 59. Qe1# {[%clk
0:00:26.4]} 1-0